[Event "*** SCC Grand Prix: Titled Tuesday Blitz"]
[Site "Chess.com"]
[Date "2020.06.23"]
[Round "10"]
[White "picturesquecheck"]
[Black "Piotrek1979"]
[Result "1-0"]
[WhiteElo "2129"]
[BlackElo "2335"]
[TimeControl "180+1"]
[EndTime "11:56:27 PDT"]
[Termination "picturesquecheck won by resignation"]

1. e4 {[%clk 0:03:00.9]} 1... c6 {[%clk 0:02:57.9]} 2. d4 {[%clk 0:02:59.7]}
2... d5 {[%clk 0:02:58.8]} 3. Nd2 {[%clk 0:03:00.2]} 3... dxe4 {[%clk
0:02:57.9]} 4. Nxe4 {[%clk 0:03:01.1]} 4... Bf5 {[%clk 0:02:58]} 5. Ng3 {[%clk
0:03:00.6]} 5... Bg6 {[%clk 0:02:57.2]} 6. h4 {[%clk 0:03:01.5]} 6... h6 {[%clk
0:02:56.9]} 7. Nf3 {[%clk 0:02:57.7]} 7... Nd7 {[%clk 0:02:56.4]} 8. h5 {[%clk
0:02:58.2]} 8... Bh7 {[%clk 0:02:56]} 9. Bd3 {[%clk 0:02:59.1]} 9... Bxd3 {[%clk
0:02:55.9]} 10. Qxd3 {[%clk 0:02:59.7]} 10... Ngf6 {[%clk 0:02:53.1]} 11. Bd2
{[%clk 0:02:59.6]} 11... e6 {[%clk 0:02:52.4]} 12. O-O-O {[%clk 0:02:59.6]}
12... Be7 {[%clk 0:02:52.8]} 13. Kb1 {[%clk 0:02:58.4]} 13... O-O {[%clk
0:02:49.6]} 14. Ne4 {[%clk 0:02:57.8]} 14... Nxe4 {[%clk 0:02:49.5]} 15. Qxe4
{[%clk 0:02:58.7]} 15... Nf6 {[%clk 0:02:49.5]} 16. Qe2 {[%clk 0:02:58.8]} 16...
Qd5 {[%clk 0:02:49.9]} 17. Be3 {[%clk 0:02:59]} 17... Ne4 {[%clk 0:02:13.9]} 18.
Ne5 {[%clk 0:02:55.3]} 18... f5 {[%clk 0:02:09.7]} 19. Ng6 {[%clk 0:02:53]}
19... Rfe8 {[%clk 0:02:02.6]} 20. Nxe7+ {[%clk 0:02:31.5]} 20... Rxe7 {[%clk
0:02:00.6]} 21. c4 {[%clk 0:02:31.5]} 21... Qd6 {[%clk 0:01:40.1]} 22. g3 {[%clk
0:02:23.4]} 22... b5 {[%clk 0:01:30.4]} 23. Bf4 {[%clk 0:02:15.4]} 23... Qb4
{[%clk 0:01:26.5]} 24. Rc1 {[%clk 0:02:05.6]} 24... e5 {[%clk 0:01:00.2]} 25.
dxe5 {[%clk 0:02:04.3]} 25... Rd8 {[%clk 0:00:49]} 26. Rhd1 {[%clk 0:01:51.5]}
26... Red7 {[%clk 0:00:48.9]} 27. Rxd7 {[%clk 0:01:30]} 27... Rxd7 {[%clk
0:00:49.8]} 28. e6 {[%clk 0:01:26.3]} 28... Rd4 {[%clk 0:00:40.4]} 29. cxb5
{[%clk 0:01:22.7]} 29... cxb5 {[%clk 0:00:36.2]} 30. f3 {[%clk 0:01:00.4]} 30...
Nd2+ {[%clk 0:00:35.7]} 31. Ka1 {[%clk 0:00:59.7]} 31... Kh7 {[%clk 0:00:11.7]}
32. e7 {[%clk 0:00:56.8]} 32... Nc4 {[%clk 0:00:11.8]} 33. e8=Q {[%clk
0:00:54.9]} 33... Rd2 {[%clk 0:00:11.7]} 34. Qg6+ {[%clk 0:00:53.8]} 1-0

[Event "*** SCC Grand Prix: Titled Tuesday Blitz"]
[Site "Chess.com"]
[Date "2020.06.23"]
[Round "10"]
[White "abubakrtagelsir"]
[Black "korbul"]
[Result "1-0"]
[WhiteElo "2357"]
[BlackElo "2478"]
[TimeControl "180+1"]
[EndTime "11:56:28 PDT"]
[Termination "abubakrtagelsir won by checkmate"]

1. e4 {[%clk 0:03:00.9]} 1... c5 {[%clk 0:02:59.3]} 2. Nc3 {[%clk 0:03:00.8]}
2... Nc6 {[%clk 0:02:58.7]} 3. f4 {[%clk 0:03:00.4]} 3... g6 {[%clk 0:02:56.5]}
4. Nf3 {[%clk 0:03:01.3]} 4... Bg7 {[%clk 0:02:56.3]} 5. Bb5 {[%clk 0:03:01.6]}
5... e6 {[%clk 0:02:55.8]} 6. O-O {[%clk 0:03:01.3]} 6... Nge7 {[%clk
0:02:55.3]} 7. e5 {[%clk 0:03:00.3]} 7... O-O {[%clk 0:02:48.6]} 8. Ne4 {[%clk
0:03:00.4]} 8... d5 {[%clk 0:02:44.7]} 9. exd6 {[%clk 0:02:59.9]} 9... Nf5
{[%clk 0:02:44.7]} 10. Bxc6 {[%clk 0:02:59]} 10... bxc6 {[%clk 0:02:44.1]} 11.
d3 {[%clk 0:02:59]} 11... Nxd6 {[%clk 0:02:38]} 12. Ne5 {[%clk 0:02:52.9]} 12...
Nf5 {[%clk 0:02:35.2]} 13. Nxc6 {[%clk 0:02:49.4]} 13... Qb6 {[%clk 0:02:30.6]}
14. Ne5 {[%clk 0:02:46.4]} 14... c4+ {[%clk 0:02:30.2]} 15. Kh1 {[%clk 0:02:46]}
15... cxd3 {[%clk 0:02:29]} 16. cxd3 {[%clk 0:02:46.1]} 16... Rd8 {[%clk
0:02:21.9]} 17. Nc4 {[%clk 0:02:34]} 17... Qd4 {[%clk 0:02:18.3]} 18. Nf2 {[%clk
0:02:07.5]} 18... Bb7 {[%clk 0:02:15.7]} 19. Qg4 {[%clk 0:01:58.6]} 19... Rac8
{[%clk 0:02:09.7]} 20. Ne5 {[%clk 0:01:42.5]} 20... h5 {[%clk 0:02:03.3]} 21.
Qh3 {[%clk 0:01:42.1]} 21... Rc2 {[%clk 0:02:00.3]} 22. Kg1 {[%clk 0:01:33.4]}
22... Bxe5 {[%clk 0:01:43.7]} 23. fxe5 {[%clk 0:01:33]} 23... Qxe5 {[%clk
0:01:43.3]} 24. Bg5 {[%clk 0:01:22.3]} 24... f6 {[%clk 0:01:34.3]} 25. Rac1
{[%clk 0:01:16.4]} 25... Rxf2 {[%clk 0:01:19.4]} 26. Rxf2 {[%clk 0:01:14.7]}
26... fxg5 {[%clk 0:01:19.1]} 27. d4 {[%clk 0:01:10.5]} 27... Rxd4 {[%clk
0:01:10.4]} 28. Qb3 {[%clk 0:01:09.6]} 28... Rd7 {[%clk 0:01:00.9]} 29. Qa4
{[%clk 0:00:59.2]} 29... Qd5 {[%clk 0:00:58.4]} 30. Qxa7 {[%clk 0:00:55]} 30...
Ne3 {[%clk 0:00:55.5]} 31. Qb8+ {[%clk 0:00:52.5]} 31... Kh7 {[%clk 0:00:55.1]}
32. Qf8 {[%clk 0:00:48.8]} 32... Qd1+ {[%clk 0:00:51.2]} 33. Rf1 {[%clk
0:00:47.4]} 33... Qg4 {[%clk 0:00:46.5]} 34. Rf7+ {[%clk 0:00:43.2]} 34... Rxf7
{[%clk 0:00:41.7]} 35. Qxf7+ {[%clk 0:00:43]} 35... Kh8 {[%clk 0:00:40.1]} 36.
Qf8+ {[%clk 0:00:42.3]} 36... Kh7 {[%clk 0:00:40.6]} 37. Rc7# {[%clk 0:00:41.4]}
1-0

[Event "*** SCC Grand Prix: Titled Tuesday Blitz"]
[Site "Chess.com"]
[Date "2020.06.23"]
[Round "10"]
[White "nrvisakh"]
[Black "TigrVShlyape"]
[Result "0-1"]
[WhiteElo "2781"]
[BlackElo "2915"]
[TimeControl "180+1"]
[EndTime "11:56:29 PDT"]
[Termination "TigrVShlyape won by resignation"]

1. d4 {[%clk 0:03:00.9]} 1... Nf6 {[%clk 0:02:56.9]} 2. c4 {[%clk 0:03:01]} 2...
g6 {[%clk 0:02:56.6]} 3. Nc3 {[%clk 0:03:00.6]} 3... Bg7 {[%clk 0:02:55.1]} 4.
e4 {[%clk 0:03:00.8]} 4... d6 {[%clk 0:02:55.6]} 5. Be2 {[%clk 0:03:01.1]} 5...
e5 {[%clk 0:02:54.3]} 6. d5 {[%clk 0:02:46.3]} 6... Na6 {[%clk 0:02:51.9]} 7.
Be3 {[%clk 0:02:45.8]} 7... Nc5 {[%clk 0:02:51.6]} 8. f3 {[%clk 0:02:45.8]} 8...
a5 {[%clk 0:02:50.6]} 9. g4 {[%clk 0:02:44.8]} 9... h5 {[%clk 0:02:49.2]} 10. g5
{[%clk 0:02:44.9]} 10... Nh7 {[%clk 0:02:46.6]} 11. h4 {[%clk 0:02:44.9]} 11...
f6 {[%clk 0:02:41.9]} 12. gxf6 {[%clk 0:02:44.8]} 12... Bxf6 {[%clk 0:02:40.9]}
13. Bf2 {[%clk 0:02:44.6]} 13... Bd7 {[%clk 0:02:24]} 14. Kd2 {[%clk 0:02:36]}
14... g5 {[%clk 0:02:22.9]} 15. hxg5 {[%clk 0:02:35.2]} 15... Bxg5+ {[%clk
0:02:22.9]} 16. Kc2 {[%clk 0:02:35.6]} 16... Nf6 {[%clk 0:02:22.2]} 17. Nh3
{[%clk 0:02:34.9]} 17... Bh6 {[%clk 0:02:12.8]} 18. Bh4 {[%clk 0:02:33.6]} 18...
Qe7 {[%clk 0:02:12.6]} 19. Qg1 {[%clk 0:02:33.2]} 19... O-O-O {[%clk 0:02:10.1]}
20. Qg6 {[%clk 0:02:32.5]} 20... Rdf8 {[%clk 0:02:09.5]} 21. Rag1 {[%clk
0:02:31.2]} 21... Be3 {[%clk 0:02:08.4]} 22. Rg3 {[%clk 0:02:24.5]} 22... Kb8
{[%clk 0:02:05.4]} 23. Qg7 {[%clk 0:02:05.2]} 23... Qd8 {[%clk 0:01:59.4]} 24.
Nd1 {[%clk 0:01:33.7]} 24... Bd4 {[%clk 0:01:54.2]} 25. Ng5 {[%clk 0:01:19.4]}
25... Rhg8 {[%clk 0:01:51.9]} 26. Qh6 {[%clk 0:01:19]} 26... Qe8 {[%clk
0:01:43.7]} 27. Nh7 {[%clk 0:01:00.5]} 27... Nxh7 {[%clk 0:01:39.3]} 28. Qxh7
{[%clk 0:00:52.7]} 28... Bc8 {[%clk 0:01:30.3]} 29. Rxg8 {[%clk 0:00:38.5]}
29... Rxg8 {[%clk 0:01:30]} 30. Bf1 {[%clk 0:00:38.7]} 30... Qa4+ {[%clk
0:01:27.9]} 31. Kd2 {[%clk 0:00:38.9]} 31... Rf8 {[%clk 0:01:25.2]} 32. Be2
{[%clk 0:00:28.6]} 32... Qxa2 {[%clk 0:01:18.6]} 33. Be7 {[%clk 0:00:28.3]}
33... Re8 {[%clk 0:01:11.1]} 34. Qf7 {[%clk 0:00:28.3]} 34... Bd7 {[%clk
0:01:10]} 35. Rxh5 {[%clk 0:00:27.9]} 35... Bxb2 {[%clk 0:01:07.7]} 36. Nxb2
{[%clk 0:00:28]} 36... Qxb2+ {[%clk 0:01:07.7]} 37. Ke1 {[%clk 0:00:28.9]} 37...
a4 {[%clk 0:01:06.6]} 38. Rg5 {[%clk 0:00:17.8]} 38... a3 {[%clk 0:01:04.8]} 39.
Rg8 {[%clk 0:00:18]} 39... Rxg8 {[%clk 0:01:04.5]} 40. Qxg8+ {[%clk 0:00:18.9]}
40... Ka7 {[%clk 0:01:04.6]} 41. Bd8 {[%clk 0:00:18.8]} 41... a2 {[%clk
0:01:03.3]} 0-1

[Event "*** SCC Grand Prix: Titled Tuesday Blitz"]
[Site "Chess.com"]
[Date "2020.06.23"]
[Round "10"]
[White "timator"]
[Black "seorobert1971"]
[Result "0-1"]
[WhiteElo "2563"]
[BlackElo "2710"]
[TimeControl "180+1"]
[EndTime "11:56:30 PDT"]
[Termination "seorobert1971 won on time"]

1. Nf3 {[%clk 0:03:00.9]} 1... Nf6 {[%clk 0:03:00]} 2. d4 {[%clk 0:03:01.4]}
2... d5 {[%clk 0:02:59.8]} 3. c4 {[%clk 0:03:01.4]} 3... c6 {[%clk 0:02:59.8]}
4. Nc3 {[%clk 0:03:01]} 4... e6 {[%clk 0:02:59.8]} 5. e3 {[%clk 0:03:00.9]} 5...
Nbd7 {[%clk 0:02:59.6]} 6. Qc2 {[%clk 0:02:57]} 6... Bd6 {[%clk 0:02:57.7]} 7.
b3 {[%clk 0:02:56.7]} 7... O-O {[%clk 0:02:56.3]} 8. Bb2 {[%clk 0:02:57.2]} 8...
Qe7 {[%clk 0:02:51.6]} 9. Bd3 {[%clk 0:02:51.3]} 9... e5 {[%clk 0:02:30.3]} 10.
cxd5 {[%clk 0:02:38.3]} 10... cxd5 {[%clk 0:02:30.2]} 11. dxe5 {[%clk
0:02:09.6]} 11... Nxe5 {[%clk 0:02:29.9]} 12. Nxe5 {[%clk 0:02:10.1]} 12... Qxe5
{[%clk 0:02:28.6]} 13. Ne2 {[%clk 0:02:00]} 13... Bb4+ {[%clk 0:02:28.4]} 14.
Bc3 {[%clk 0:01:59.9]} 14... Bxc3+ {[%clk 0:02:25.9]} 15. Qxc3 {[%clk
0:01:59.5]} 15... Qg5 {[%clk 0:02:25.8]} 16. O-O {[%clk 0:01:53]} 16... Bg4
{[%clk 0:02:25.5]} 17. Ng3 {[%clk 0:01:51.3]} 17... h5 {[%clk 0:02:23.9]} 18. f4
{[%clk 0:01:30.3]} 18... Qh4 {[%clk 0:02:19.3]} 19. Nf5 {[%clk 0:01:24.9]} 19...
Bxf5 {[%clk 0:02:18.9]} 20. Bxf5 {[%clk 0:01:25.8]} 20... Ng4 {[%clk 0:02:13.3]}
21. h3 {[%clk 0:01:04.1]} 21... Nf6 {[%clk 0:01:56.1]} 22. Qd4 {[%clk
0:00:49.6]} 22... g6 {[%clk 0:01:36.9]} 23. Bd3 {[%clk 0:00:19.1]} 23... Rfe8
{[%clk 0:01:33]} 24. Rac1 {[%clk 0:00:16.3]} 24... Rad8 {[%clk 0:01:21.3]} 25.
Rc7 {[%clk 0:00:15]} 25... Ne4 {[%clk 0:01:16]} 26. Rxb7 {[%clk 0:00:15]} 26...
Qg3 {[%clk 0:01:09.3]} 27. Rf3 {[%clk 0:00:10.6]} 27... Qe1+ {[%clk 0:01:09]}
28. Kh2 {[%clk 0:00:11]} 28... Nd2 {[%clk 0:01:06.4]} 29. Rf1 {[%clk 0:00:01.3]}
29... Nxf1+ {[%clk 0:01:05.7]} 30. Bxf1 {[%clk 0:00:02.2]} 30... Qxf1 {[%clk
0:01:03.5]} 31. Qf6 {[%clk 0:00:02.3]} 31... Rf8 {[%clk 0:01:03.7]} 32. Rxf7
{[%clk 0:00:02]} 32... Rxf7 {[%clk 0:01:03.6]} 33. Qxd8+ {[%clk 0:00:02.4]}
33... Kg7 {[%clk 0:01:03.9]} 34. Qxd5 {[%clk 0:00:02.8]} 34... Qa1 {[%clk
0:01:03.9]} 35. a4 {[%clk 0:00:01.8]} 35... Qf6 {[%clk 0:01:03.8]} 36. Kg3
{[%clk 0:00:01.1]} 36... Re7 {[%clk 0:01:03.8]} 37. Kf3 {[%clk 0:00:01.6]} 37...
Qc3 {[%clk 0:01:03.1]} 0-1

[Event "*** SCC Grand Prix: Titled Tuesday Blitz"]
[Site "Chess.com"]
[Date "2020.06.23"]
[Round "10"]
[White "Msb2"]
[Black "Konavets"]
[Result "1-0"]
[WhiteElo "2860"]
[BlackElo "2989"]
[TimeControl "180+1"]
[EndTime "11:56:38 PDT"]
[Termination "Msb2 won on time"]

1. d4 {[%clk 0:03:00.9]} 1... Nf6 {[%clk 0:02:59.9]} 2. c4 {[%clk 0:03:01.3]}
2... e5 {[%clk 0:02:58.2]} 3. dxe5 {[%clk 0:03:01]} 3... Ng4 {[%clk 0:02:58.6]}
4. Bf4 {[%clk 0:03:01.2]} 4... g5 {[%clk 0:02:57.4]} 5. Bd2 {[%clk 0:03:01.6]}
5... Nxe5 {[%clk 0:02:57]} 6. Nf3 {[%clk 0:02:56.9]} 6... Nxf3+ {[%clk
0:02:52.9]} 7. exf3 {[%clk 0:02:57.8]} 7... Qe7+ {[%clk 0:02:48]} 8. Be2 {[%clk
0:02:57.7]} 8... Bg7 {[%clk 0:02:47.8]} 9. Nc3 {[%clk 0:02:58]} 9... c6 {[%clk
0:02:47]} 10. Qc2 {[%clk 0:02:58]} 10... Na6 {[%clk 0:02:44.1]} 11. a3 {[%clk
0:02:57.4]} 11... d6 {[%clk 0:02:41.5]} 12. O-O-O {[%clk 0:02:57.1]} 12... Nc5
{[%clk 0:02:33.9]} 13. Rde1 {[%clk 0:02:54.2]} 13... Be6 {[%clk 0:02:31.9]} 14.
f4 {[%clk 0:02:36.3]} 14... gxf4 {[%clk 0:02:30.5]} 15. Bxf4 {[%clk 0:02:37.2]}
15... O-O-O {[%clk 0:02:30.4]} 16. Be3 {[%clk 0:02:20.1]} 16... Qf6 {[%clk
0:02:25.9]} 17. g4 {[%clk 0:02:10.7]} 17... h5 {[%clk 0:02:09.1]} 18. h3 {[%clk
0:02:04.4]} 18... Rhe8 {[%clk 0:01:33.8]} 19. Kb1 {[%clk 0:02:01.1]} 19... Bd7
{[%clk 0:01:15.7]} 20. Rd1 {[%clk 0:01:52.2]} 20... Rxe3 {[%clk 0:00:52.7]} 21.
fxe3 {[%clk 0:01:53.1]} 21... Re8 {[%clk 0:00:51.9]} 22. Rhf1 {[%clk 0:01:52.4]}
22... Qe7 {[%clk 0:00:48.6]} 23. gxh5 {[%clk 0:01:49.4]} 23... Qxe3 {[%clk
0:00:46.1]} 24. Bg4 {[%clk 0:01:46.4]} 24... Re7 {[%clk 0:00:20.5]} 25. Rxd6
{[%clk 0:01:41.6]} 25... Bxg4 {[%clk 0:00:18]} 26. hxg4 {[%clk 0:01:42.5]} 26...
Qg3 {[%clk 0:00:15.9]} 27. Rfd1 {[%clk 0:01:36.4]} 27... Qxg4 {[%clk 0:00:12.8]}
28. h6 {[%clk 0:01:24.4]} 28... Be5 {[%clk 0:00:13]} 29. h7 {[%clk 0:01:18.7]}
29... Qh5 {[%clk 0:00:13.3]} 30. R6d2 {[%clk 0:01:06.5]} 30... f5 {[%clk
0:00:08.9]} 31. Nb5 {[%clk 0:00:47.3]} 31... cxb5 {[%clk 0:00:05.4]} 32. cxb5
{[%clk 0:00:48.2]} 32... b6 {[%clk 0:00:04.8]} 33. b4 {[%clk 0:00:48.9]} 33...
Qxh7 {[%clk 0:00:04.4]} 34. bxc5 {[%clk 0:00:48.9]} 34... bxc5 {[%clk
0:00:01.5]} 35. Rd8+ {[%clk 0:00:48.5]} 35... Kb7 {[%clk 0:00:01.7]} 36. Qg2+
{[%clk 0:00:48.1]} 1-0

[Event "*** SCC Grand Prix: Titled Tuesday Blitz"]
[Site "Chess.com"]
[Date "2020.06.23"]
[Round "10"]
[White "QueenOfTactics90"]
[Black "otrov-11"]
[Result "0-1"]
[WhiteElo "1980"]
[BlackElo "2385"]
[TimeControl "180+1"]
[EndTime "11:56:38 PDT"]
[Termination "otrov-11 won by checkmate"]

1. e4 {[%clk 0:03:00.9]} 1... e6 {[%clk 0:02:55.6]} 2. Qe2 {[%clk 0:03:00.1]}
2... c5 {[%clk 0:02:54]} 3. g3 {[%clk 0:02:59.1]} 3... Nc6 {[%clk 0:02:53.5]} 4.
Bg2 {[%clk 0:02:57.9]} 4... Be7 {[%clk 0:02:52.7]} 5. Nf3 {[%clk 0:02:50.6]}
5... d5 {[%clk 0:02:48]} 6. e5 {[%clk 0:02:47.6]} 6... g5 {[%clk 0:02:22.9]} 7.
O-O {[%clk 0:02:20.3]} 7... g4 {[%clk 0:02:17.9]} 8. Ne1 {[%clk 0:02:13.3]} 8...
h5 {[%clk 0:02:18.3]} 9. f4 {[%clk 0:02:11.2]} 9... Nh6 {[%clk 0:02:14.4]} 10.
d3 {[%clk 0:02:03.2]} 10... Nf5 {[%clk 0:02:13.1]} 11. c3 {[%clk 0:00:35.4]}
11... Qc7 {[%clk 0:01:36]} 12. Nd2 {[%clk 0:00:32.5]} 12... Bd7 {[%clk
0:01:32.5]} 13. a4 {[%clk 0:00:31.1]} 13... O-O-O {[%clk 0:01:18.5]} 14. Rf2
{[%clk 0:00:31.2]} 14... Rdg8 {[%clk 0:01:17.7]} 15. Nf1 {[%clk 0:00:31.2]}
15... h4 {[%clk 0:01:17.7]} 16. Rb1 {[%clk 0:00:29]} 16... hxg3 {[%clk
0:01:17.4]} 17. hxg3 {[%clk 0:00:28.5]} 17... Qd8 {[%clk 0:01:09.3]} 18. Bd2
{[%clk 0:00:28.7]} 18... Rh3 {[%clk 0:00:49.3]} 19. Bxh3 {[%clk 0:00:25.1]}
19... gxh3 {[%clk 0:00:50.2]} 20. Kh2 {[%clk 0:00:24.4]} 20... Bh4 {[%clk
0:00:35.9]} 21. gxh4 {[%clk 0:00:22.9]} 21... Qxh4 {[%clk 0:00:36.8]} 22. Qf3
{[%clk 0:00:22.4]} 22... Nce7 {[%clk 0:00:32.4]} 23. Ne3 {[%clk 0:00:19.8]}
23... d4 {[%clk 0:00:30.1]} 24. Nxf5 {[%clk 0:00:19.7]} 24... Nxf5 {[%clk
0:00:31]} 25. cxd4 {[%clk 0:00:18.5]} 25... Bc6 {[%clk 0:00:31.1]} 26. Qxh3
{[%clk 0:00:18.7]} 26... Qxf2+ {[%clk 0:00:30]} 27. Ng2 {[%clk 0:00:18.4]} 27...
Rxg2+ {[%clk 0:00:30]} 28. Kh1 {[%clk 0:00:18.7]} 28... Rh2# {[%clk 0:00:29.5]}
0-1

[Event "*** SCC Grand Prix: Titled Tuesday Blitz"]
[Site "Chess.com"]
[Date "2020.06.23"]
[Round "10"]
[White "jaskol95"]
[Black "Mbneu"]
[Result "1-0"]
[WhiteElo "2392"]
[BlackElo "2200"]
[TimeControl "180+1"]
[EndTime "11:56:39 PDT"]
[Termination "jaskol95 won by resignation"]

1. d4 {[%clk 0:03:00.9]} 1... Nf6 {[%clk 0:02:58.8]} 2. c4 {[%clk 0:03:00.7]}
2... c5 {[%clk 0:02:58.9]} 3. d5 {[%clk 0:03:00.7]} 3... e6 {[%clk 0:02:58.9]}
4. Nc3 {[%clk 0:03:00.1]} 4... exd5 {[%clk 0:02:58.9]} 5. cxd5 {[%clk 0:03:01]}
5... d6 {[%clk 0:02:59.3]} 6. Bf4 {[%clk 0:03:01.3]} 6... g6 {[%clk 0:02:58.2]}
7. e3 {[%clk 0:03:00.8]} 7... Bg7 {[%clk 0:02:57.7]} 8. Qa4+ {[%clk 0:02:56.9]}
8... Bd7 {[%clk 0:02:50.5]} 9. Qb3 {[%clk 0:02:56.5]} 9... b5 {[%clk 0:02:45.8]}
10. Bxb5 {[%clk 0:02:50.1]} 10... O-O {[%clk 0:02:38]} 11. Bxd6 {[%clk
0:02:39.2]} 11... Re8 {[%clk 0:02:34.3]} 12. Bxc5 {[%clk 0:02:37]} 12... Bxb5
{[%clk 0:02:16.8]} 13. Qxb5 {[%clk 0:02:34.3]} 13... Nbd7 {[%clk 0:02:12.3]} 14.
Bd4 {[%clk 0:02:25]} 14... Rb8 {[%clk 0:02:03.2]} 15. Qe2 {[%clk 0:02:22]} 15...
Nxd5 {[%clk 0:01:48.5]} 16. Bxg7 {[%clk 0:02:16.1]} 16... Nf4 {[%clk 0:01:48.2]}
17. Qc4 {[%clk 0:02:01.7]} 17... Ne5 {[%clk 0:01:06.6]} 18. Bxe5 {[%clk
0:01:45.5]} 18... Nd3+ {[%clk 0:01:03.9]} 19. Kf1 {[%clk 0:01:26]} 19... Nxe5
{[%clk 0:00:54.6]} 20. Qe2 {[%clk 0:01:22.6]} 20... Re6 {[%clk 0:00:21.4]} 21.
Nf3 {[%clk 0:01:15.6]} 21... Nc6 {[%clk 0:00:18.6]} 22. g3 {[%clk 0:01:05.1]}
22... Qb6 {[%clk 0:00:17.3]} 23. Kg2 {[%clk 0:00:58.2]} 23... h6 {[%clk
0:00:16.7]} 24. Rhd1 {[%clk 0:00:53.1]} 24... g5 {[%clk 0:00:16.5]} 25. h3
{[%clk 0:00:52.7]} 25... Qb7 {[%clk 0:00:15.4]} 26. Kh2 {[%clk 0:00:50.6]} 26...
Rf6 {[%clk 0:00:13.9]} 27. Nd5 {[%clk 0:00:42.2]} 27... Rf5 {[%clk 0:00:13.4]}
28. Rac1 {[%clk 0:00:41.1]} 28... Ne5 {[%clk 0:00:12.1]} 29. Nxe5 {[%clk
0:00:34.6]} 29... Rxe5 {[%clk 0:00:13]} 30. Nf6+ {[%clk 0:00:31.3]} 30... Kg7
{[%clk 0:00:12.8]} 31. Nd7 {[%clk 0:00:30.7]} 1-0

[Event "*** SCC Grand Prix: Titled Tuesday Blitz"]
[Site "Chess.com"]
[Date "2020.06.23"]
[Round "10"]
[White "boasovietica"]
[Black "Novoselski"]
[Result "1-0"]
[WhiteElo "2449"]
[BlackElo "2308"]
[TimeControl "180+1"]
[EndTime "11:56:40 PDT"]
[Termination "boasovietica won by resignation"]

1. e4 {[%clk 0:03:00.9]} 1... e5 {[%clk 0:02:58.7]} 2. Nf3 {[%clk 0:02:57.2]}
2... f5 {[%clk 0:02:55.9]} 3. Nxe5 {[%clk 0:02:52.2]} 3... Qf6 {[%clk
0:02:55.4]} 4. d4 {[%clk 0:02:51.1]} 4... d6 {[%clk 0:02:55.4]} 5. Nc4 {[%clk
0:02:50]} 5... fxe4 {[%clk 0:02:55.3]} 6. Nc3 {[%clk 0:02:48.4]} 6... Qf7 {[%clk
0:02:55.2]} 7. Ne3 {[%clk 0:02:45.2]} 7... Nf6 {[%clk 0:02:54]} 8. Bc4 {[%clk
0:02:39.5]} 8... Qg6 {[%clk 0:02:52.2]} 9. Qe2 {[%clk 0:02:33.8]} 9... c6 {[%clk
0:02:48.3]} 10. Bd2 {[%clk 0:02:30.4]} 10... d5 {[%clk 0:02:44.6]} 11. Bb3
{[%clk 0:02:29.6]} 11... Bd6 {[%clk 0:02:40.5]} 12. O-O-O {[%clk 0:02:28.8]}
12... O-O {[%clk 0:02:37.9]} 13. f3 {[%clk 0:02:19.3]} 13... exf3 {[%clk
0:02:31.4]} 14. gxf3 {[%clk 0:02:18.8]} 14... Bh3 {[%clk 0:02:22.9]} 15. Rhg1
{[%clk 0:02:17.2]} 15... Qh5 {[%clk 0:02:13.9]} 16. Ng4 {[%clk 0:01:55.2]} 16...
Bxg4 {[%clk 0:01:58.9]} 17. fxg4 {[%clk 0:01:52.1]} 17... Qe8 {[%clk 0:01:53.9]}
18. Qg2 {[%clk 0:01:47.7]} 18... Nbd7 {[%clk 0:01:43.4]} 19. g5 {[%clk
0:01:46.3]} 19... Nh5 {[%clk 0:01:41.9]} 20. Rde1 {[%clk 0:01:40.5]} 20... Qg6
{[%clk 0:01:40]} 21. Qg4 {[%clk 0:01:37.3]} 21... Rf5 {[%clk 0:01:24.1]} 22. Nd1
{[%clk 0:01:09]} 22... Raf8 {[%clk 0:01:03.6]} 23. Ne3 {[%clk 0:01:02.5]} 23...
R5f7 {[%clk 0:01:02.4]} 24. c3 {[%clk 0:00:58.7]} 24... Nb6 {[%clk 0:01:00.5]}
25. Bc2 {[%clk 0:00:56.9]} 25... Rf4 {[%clk 0:00:41.4]} 26. Bxg6 {[%clk
0:00:41.1]} 26... Rxg4 {[%clk 0:00:40.3]} 27. Bxh5 {[%clk 0:00:39.2]} 27... Rh4
{[%clk 0:00:40.1]} 28. Bg4 {[%clk 0:00:35.8]} 28... Rxh2 {[%clk 0:00:35.7]} 29.
Rgf1 {[%clk 0:00:34.1]} 29... g6 {[%clk 0:00:31.9]} 30. Rxf8+ {[%clk 0:00:31.7]}
30... Kxf8 {[%clk 0:00:31.3]} 31. Rf1+ {[%clk 0:00:31.5]} 31... Kg7 {[%clk
0:00:30.5]} 32. Be6 {[%clk 0:00:29.1]} 1-0